Cogmind - Beta 15 @@@ ROGUE MODE // 2025.07.22 @ 21:43:57 Player: erfael Result: Destroyed by as-57916 with Assembled Blade Performance ------------- Evolutions (0) 0 Regions Visited (2) 400 Robots Destroyed (11) 55 Value Destroyed (153) 153 Prototype IDs (0) 0 Alien Tech Used (0) 0 Bonus (0) 0 TOTAL SCORE: 608 Bonus ------- None Cogmind --------- Core Integrity 0/250 Matter 209/300 Energy 100/100 System Corruption 5% Temperature Cool (0) Movement Core (350) Ox6 Location -10/Mines Parts ------- > --- POWER (1) -------- (None) > --- PROPULSION (2) --- (None) > --- UTILITY (2) ------ Large Storage Unit > --- WEAPON (2) ------- (None) > --- INVENTORY (15) --- Ion Engine Light Treads Light Treads Large Storage Unit Signal Interpreter Improved Terrain Scanner Seismic Detector Medium Laser Medium Laser Light Assault Rifle Light Assault Rifle Slug Cannon Mining Laser Peak State ------------ > --- POWER ------------ Light Ion Engine > --- PROPULSION ------- Aluminum Leg Aluminum Leg > --- UTILITY ---------- Medium Storage Unit Seismic Detector > --- WEAPON ----------- Medium Laser Light Assault Rifle > --- INVENTORY -------- Ion Engine Light Treads Light Treads Small Storage Unit Improved Terrain Scanner Seismic Detector Medium Laser Grenade Launcher [Rating: 8] Favorites ----------- Power Light Ion Engine Engine Light Ion Engine Propulsion Aluminum Leg Leg Aluminum Leg Utility Seismic Detector Device Seismic Detector Storage Large Storage Unit Weapon Medium Laser Energy Gun Medium Laser Ballistic Gun Light Assault Rifle Launcher Rocket Launcher Build | -11 -10 -10 ------- Run | Yrd Mat Min Slots Evolved . | . . . Power . | . . . Propulsion . | . . . Utility . | . . . Weapon . | . . . Parts Attached 11 | 7 2 2 Power 1 | 1 . . Engine 1 | 1 . . Core . | . . . Reactor . | . . . Propulsion 2 | 2 . . Treads . | . . . Leg 2 | 2 . . Wheel . | . . . Hover . | . . . Flight . | . . . Utility 4 | 2 2 . Device 1 | 1 . . Storage 3 | 1 2 . Processor . | . . . Hackware . | . . . Protection . | . . . Artifact . | . . . Weapon 4 | 2 . 2 Energy Gun 1 | 1 . . Energy Cannon . | . . . Ballistic Gun 1 | 1 . . Ballistic Cannon . | . . . Launcher 2 | . . 2 Special Weapon . | . . . Impact Weapon . | . . . Slashing Weapon . | . . . Piercing Weapon . | . . . Special Melee Weapon . | . . . Unidentified Prototypes . | . . . Parts Lost 6 | . . 6 Power 1 | . . 1 Propulsion 2 | . . 2 Utility 1 | . . 1 Weapon 2 | . . 2 Highest Loss Streak 6 | . . 6 To Critical Strikes . | . . . Average Backups 8 | 4 8 12 Power . | . 1 1 Propulsion 1 | 1 2 2 Utility 2 | . 3 4 Weapon 2 | . 2 5 Tool/Special . | . . . Unused Backups 10 | . . 10 Power 1 | . . 1 Propulsion 2 | . . 2 Utility 4 | . . 4 Weapon 3 | . . 3 Tool/Special . | . . . Average Slot Usage (%) 98 | . 100 96 Engine 13 | . 14 13 Leg 27 | . 28 26 Device 13 | . 14 13 Storage 14 | . 14 14 Energy Gun 13 | . 14 13 Ballistic Gun 13 | . 14 13 Peak Build Rating 8 | 7 8 8 Average Rating 7 | 6 7 7 On Entrance 5 | . 7 8 Naked Turns . | . . . Heaviest Build 28 | 12 27 28 Greatest Support 20 | 20 20 20 Greatest Overweight (x) 6 | 1 1 6 Average Overweight (x) . | . . 1 Largest Inventory Capacity 15 | 8 15 15 Average Capacity 11 | 7 11 15 Most Carried 13 | 6 11 13 Average Carried 8 | 4 8 12 Final Capacity 15 | 8 15 15 Final Carried 13 | 6 11 13 Class Distribution -------------------- 100% | Mutant Dominant Class ---------------- Mutant | -10/Materials Mutant | -10/Mines Resources | -11 -10 -10 ----------- Run | Yrd Mat Min Matter Collected 332 | 298 34 . Remotely . | . . . Salvage Created 308 | 163 66 79 Parts 22 | 18 2 2 Haulers Intercepted . | . . . Recyclers Shooed 1 | 1 . . Parts Field Recycled . | . . . Retrieved Matter . | . . . Parts Self-Destructed . | . . . Prevented . | . . . Kills | -11 -10 -10 ------- Run | Yrd Mat Min Combat Hostiles Destroyed 15 | . 1 14 Guns 1 | . 1 . AOE 14 | . . 14 Classes Destroyed 4 | 1 2 1 Tunneler 8 | 8 . . Operator 1 | . 1 . Grunt 2 | . 1 1 Assembled 13 | . . 13 Best Kill Streak 14 | 2 1 14 Combat Bots Only 14 | . 1 14 Max Kills in Single Turn 3 | 1 1 3 Gunslinging . | . . . Exploded 3 | . . 3 Melee . | . . . Uniques/NPCs Destroyed . | . . . Combat | -11 -10 -10 -------- Run | Yrd Mat Min Hostile Shots Fired 60 | . 20 40 Missed 15 | . 4 11 Hits 45 | . 16 29 Melee 9 | . . 9 Projectile 36 | . 16 20 Critical Strikes 1 | . 1 . Damage Taken 777 | . 186 591 Core 254 | . 28 226 Absorbed by Shields . | . . . Core Remaining (%) 100 | 100 . . Volleys Fired 53 | 33 14 6 Largest 2 | 2 2 2 Hottest 70 | 70 70 63 Shots Fired 101 | 66 27 8 Gun 93 | 66 27 . Cannon . | . . . Launcher 8 | . . 8 Special . | . . . Kinetic 47 | 33 14 . Thermal 46 | 33 13 . Explosive 8 | . . 8 Electromagnetic . | . . . Robot Hit Streak 6 | 6 5 . Robot Miss Streak 3 | 2 2 3 Penetration Max . | . . . Secondary Targets . | . . . Shots Hit Robots 57 | 37 20 . Core Hits 49 | 14 6 29 Critical Kills . | . . . Critical Parts Destroyed . | . . . Critical Strikes 4 | 2 2 . Burn 4 | 2 2 . Melee Attacks . | . . . Impact . | . . . Slashing . | . . . Piercing . | . . . Sneak Attacks . | . . . Combat Hostiles . | . . . Follow-up Attacks . | . . . Damage Inflicted 1413 | 394 209 810 Guns 599 | 390 209 . Cannons . | . . . Explosions 810 | . . 810 Melee . | . . . Ramming 4 | 4 . . Kinetic 222 | 138 84 . Thermal 377 | 252 125 . Explosive 810 | . . 810 Electromagnetic . | . . . Impact . | . . . Slashing . | . . . Piercing . | . . . Highest Corruption 5 | . . 5 Average Corruption 2 | . . 2 Corruption Purged . | . . . Corruption Blocked . | . . . Effects 1 | . . 1 Matter Fused 1 | . . 1 Overload Shots . | . . . Overflow Damage . | . . . Projectiles . | . . . Explosions . | . . . Melee . | . . . Knockbacks . | . . . Impact . | . . . Kinetic . | . . . Secondary . | . . . Self-Inflicted Damage 70 | . . 70 Shots 2 | . . 2 Rammed . | . . . Targets Rammed 1 | 1 . . Kicked 1 | 1 . . Crushed . | . . . Highest Temperature 238 | 150 238 6 Average Temperature 55 | 41 95 3 Received Heat Transfer 108 | . 108 . Siege Activations . | . . . Martial Activations . | . . . Shielding Activations . | . . . Robots Disrupted . | . . . Combat Hostiles . | . . . Robots Corrupted . | . . . Combat Hostiles . | . . . Parts Fried . | . . . Impact Corruptions . | . . . Robots Melted . | . . . Combat Hostiles . | . . . Parts Melted 2 | 2 . . Heat Transferred 1406 | 888 518 . Parts Sabotaged . | . . . Parts Stolen . | . . . Parts Stripped . | . . . Power Chain Reactions . | . . . Alert | -11 -10 -10 ------- Run | Yrd Mat Min Maximum Alert Level . | . . . Low Security (%) 100 | 100 100 100 Level 1 . | . . . Level 2 . | . . . Level 3 . | . . . Level 4 . | . . . Level 5 . | . . . High Security . | . . . Max Security . | . . . Peak Influence 45 | 5 45 43 Initial . | . . . Average 3 | 1 7 1 Influence Increases 179 | 40 73 66 Destroy 0b10 Robot/C 40 | . 20 20 Destroy 0b10 Robot/NC 45 | 40 5 . Destroy Leader 10 | . 10 . Successful Hack 8 | . 8 . Destroy Structure 46 | . . 46 Lose Combat Pursuer 30 | . 30 . Influence Decreases 171 | 40 73 58 Time Decay 121 | 40 73 8 Lost Part 50 | . . 50 Squads Dispatched 1 | . 1 . Investigation . | . . . Extermination . | . . . Reinforcement 1 | . 1 . Assault . | . . . Garrison . | . . . Intercept . | . . . Searches Triggered . | . . . Construction Impeded . | . . . Haulers Reinforced . | . . . Active Scanning Responses . | . . . Cargo Convoy Interrupts . | . . . Stealth | -11 -10 -10 --------- Run | Yrd Mat Min Distress Signals 1 | . 1 . Communications Jammed . | . . . Distress Signals . | . . . Times Spotted 38 | . 16 22 Peak Tracking Total 20 | . 8 20 Tactical Retreats 2 | . 2 . Traps | -11 -10 -10 ------- Run | Yrd Mat Min Traps Triggered . | . . . Indirectly . | . . . Trap Hack Attempts . | . . . Triggered . | . . . Disarmed . | . . . Reprogrammed . | . . . Reused . | . . . Traps Extracted . | . . . Installed . | . . . Triggered . | . . . Machines | -11 -10 -10 ---------- Run | Yrd Mat Min Machines Disabled . | . . . Max in Single Turn . | . . . Machines Repaired . | . . . Machines Dismantled . | . . . Machines Sabotaged . | . . . Overloaded Fab Kills . | . . . Hacking | -11 -10 -10 --------- Run | Yrd Mat Min Machines Accessed 3 | . 3 . Terminals 3 | . 3 . Fabricators . | . . . Repair Stations . | . . . Recycling Units . | . . . Scanalyzers . | . . . Garrison Access . | . . . Total Hacks 6 | . 6 . Successful 3 | . 3 . Failed 3 | . 3 . Catastrophic 1 | . 1 . Database Lockouts . | . . . Manual 6 | . 6 . Terminals 6 | . 6 . Fabricators . | . . . Repair Stations . | . . . Recycling Units . | . . . Scanalyzers . | . . . Garrison Access . | . . . Terminal Hacks 1 | . 1 . Branch Access Points 1 | . 1 . Fabricator Hacks . | . . . Repair Station Hacks . | . . . Recycling Unit Hacks . | . . . Scanalyzer . | . . . Garrison Access Hacks . | . . . Unauthorized Hacks 2 | . 2 . Terminals 2 | . 2 . Track 1 | . 1 . Botnet 1 | . 1 . Fabricators . | . . . Repair Stations . | . . . Recycling Units . | . . . Scanalyzers . | . . . Garrison Access . | . . . Data Cores Recovered 1 | . 1 . Used 1 | . 1 . Hacking Detections 3 | . 3 . Full Trace Events . | . . . Feedback Events . | . . . Feedback Blocked . | . . . Robot Schematics Acquired . | . . . Robots Built . | . . . Authchips . | . . . Time . | . . . Total Robot Build Rating . | . . . Part Schematics Acquired . | . . . Parts Built . | . . . Authchips . | . . . Time . | . . . Total Part Build Rating . | . . . Parts Repaired . | . . . Time . | . . . Parts Recycled . | . . . Recycled Matter . | . . . Retrieved Matter . | . . . Retrieved Components . | . . . Parts Scanalyzed . | . . . Part Schematics Acquired . | . . . Parts Damaged . | . . . Bothacking | -11 -10 -10 ------------ Run | Yrd Mat Min Used RIF Installer . | . . . Robots Hacked . | . . . Non-combat . | . . . Combat . | . . . Robot Hacks Applied . | . . . Relay Couplers Released . | . . . Fabnet Peak Effective % . | . . . Robots Rewired . | . . . Allies Hacked . | . . . Hacks Repelled . | . . . Allies | -11 -10 -10 -------- Run | Yrd Mat Min Total Allies . | . . . Largest Group . | . . . Highest-Rated Group . | . . . Highest-Rated Ally . | . . . Total Orders . | . . . Ally Attacks . | . . . Total Damage . | . . . Kills . | . . . Allies Corrupted . | . . . Allies Melted . | . . . Intel | -11 -10 -10 ------- Run | Yrd Mat Min Active Infowar (turns) 1063 | 156 497 410 Seismic 1063 | 156 497 410 Robot Analysis Total . | . . . Derelict Logs Recovered 1 | . . 1 Drone Launches . | . . . Drone Recoveries . | . . . Exploration | -11 -10 -10 ------------- Run | Yrd Mat Min Turns Passed 1309 | 382 497 430 Spaces Moved 714 | 205 297 212 Core 3 | 1 . 2 Treads . | . . . Legs 711 | 204 297 210 Wheels . | . . . Hover . | . . . Flight . | . . . Fastest Speed 50 | 50 120 190 Average Speed 149 | 120 139 192 Slowest Speed 350 | 190 190 350 Overloaded Moves . | . . . Propulsion Burnouts . | . . . Robots Hopped . | . . . Potential Cave-ins . | . . . Cave-ins Triggered . | . . . Exploration Rate (%) 34 | 9 45 50 Regions Visited 2 Branch Regions 1 Pre-discovered Areas . | . . . Known Exits Taken 1 | . 1 . Unknown Exits Taken 1 | 1 . . Scrap Searched . | . . . Spaces Dug . | . . . Terrain Destroyed 68 | . . 68 Melee . | . . . Projectile . | . . . AOE 68 | . . 68 Terrain Rammed . | . . . Walls Destroyed . | . . . Machines Disabled . | . . . Actions | -11 -10 -10 --------- Run | Yrd Mat Min Total 858 | 277 356 225 Wait 66 | 26 37 3 Move 712 | 204 296 212 Hop . | . . . Pick Up 13 | 6 5 2 Fast Attach 7 | 7 . . Attach . | . . . Detach . | . . . Swap 4 | . 2 2 Drop 2 | . 2 . Fire 53 | 33 14 6 Melee . | . . . Ram . | . . . Kick 1 | 1 . . Crush . | . . . Escape Stasis . | . . . Rewire . | . . . Trap . | . . . Miscellaneous . | . . . Route ------- -11/Scrapyard -10/Materials -10/Mines (discovered 1 exit: [*Mat]) History --------- Turn | Location | Event 30 | -11/Scrapyard | Discovered new exit (range 16) 383 | -11/Scrapyard | Entered Materials 384 | -10/Materials | Build established: Mutant 558 | -10/Materials | Discovered new exit (range 7) 656 | -10/Materials | Identified exit to Mines 880 | -10/Materials | Entered Mines 927 | -10/Mines | Discovered new exit (range 6) 934 | -10/Mines | Received a Rocket Launcher from a helpful Derelict 1002 | -10/Mines | A weapon hastily lodged in a ceiling crevice suddenly fell to the ground 1212 | -10/Mines | Learned location of 1 exit from Materials 1266 | -10/Mines | Assembled infested the area 1306 | -10/Mines | Core integrity fell below 50% 1310 | -10/Mines | Core integrity fell below 20% 1310 | -10/Mines | Destroyed by as-57916 with Assembled Blade Last Messages --------------- 01290_ System corrupted by crushing effect (+1). 01290_ Knocked back. 01293_ The unstable cave ceiling collapses. 01295_ as-59231 destroyed. 01295_ as-42839 destroyed. 01295_ G-34 Mercenary destroyed. 01296_ System corrupted: Matter fused (-10). 01297_ as-76315 destroyed. 01297_ as-64497 destroyed. 01297_ as-16730 destroyed. 01299_ Lgt. Ion Engine destroyed. 01299_ System corrupted by crushing effect (+1). 01299_ as-36761 destroyed. 01299_ as-92914 destroyed. 01302_ Aluminum Leg destroyed. 01302_ System corrupted by crushing effect (+3). 01302_ Knocked back. 01302_ Rocket Launcher destroyed. 01303_ Knocked back. 01306_ The unstable cave ceiling collapses. Map ----- +----------------------------------------------------+ | ?????????????????????????????????????????????????? | | ?????????????????????????????????????????????????? | | ?????????????????????????????????????????????????? | | ?????????????????????????????????????????????????? | | ?????????????????????????????????????????????????? | | ?????????????????????????????????????????????????? | | ?????????????????????????????????????????????????? | | ?????????????????????????????????????????????????# | | ????????????????????????????????#######?????????## | | ????????????????????????????????# #?????????# | | ?????????????????????????????#### ## #?????????# | | ?????????????????????????????# #? #?????????## | | ?????????????????????????##### ## #??#??######### | | ???????????????????####### ## #?? | | ???????????????????# ###### #?? | | ???????????????????# ##### #???## ##????######### | | ?????????????????????????# #??## ###??????????? | | ?????????????????????????# #?## ##?????????? | | ?????????????????????????# ### ###???????# | | ???????????????????####### ###?????# | | ???????????????????# r## ##????# | | ?????? ? ????###### # ### ### ###### | | ?????? # #g%g #?## ##### | | ???????# [ ##?#####???### ###### | | ???????# a a ###?????????## ##???? | | ???????# % %a a a a@ ##????????## ##??? | | ???? # a ##???????# #??? | | ????? #???????# #? | | ?????????### #### #???????# # | | ???????????### ####????## #???????## | | ?????????????#### ???????????# ##????????# | | ????????????????#?????????????##?????????# | | ?????????????????????????????????????????## | | ???????????????????????????????????????????# | | ????????????????????????????????????????????###### | | ?????????????????????????????????????????????????? | | ?????????????????????????????????????????????????? | | ?????????????????????????????????????????????????? | | | | | | | | | | | | | | | | | | | | | | | | | +----------------------------------------------------+ Best States ------------- Heat Dissipation 25 Energy Generation 10 Energy Capacity 125 Matter Stores 300 Matter Capacity 300 Sight Range 16 Terrain Scan Density 10 Evasion (%) 55 Item Schematics ----------------- None Robot Schematics ------------------ None Fabricated ------------ Nothing Repaired ---------- Nothing Alien Tech Used ----------------- None Achievements -------------- None Challenges ------------ None Game ------ Seed ScatterLauncherMediator Manual? 0 Play Time 00:12:20 Cumulative 32.5 hours Start 2025.07.22 @ 21:31:36 End 2025.07.22 @ 21:43:57 Sessions 1 Manual Loads 0 Difficulty Rogue Special Mode None Game No. 32 Rogue 32 Adventurer 0 Explorer 0 Win Type - Total 0 Types 0/0/0/0/0/0/0/0/0/0 Lore% 26 Gallery% 20 Achievement% 22 Wizard Run 0 Options --------- Layout 0 ASCII 0 Keyboard 1 Movement Numpad Keybinds 0 Fullscreen 1 Font 18/SmallcapsGlow Map View 76x50 Zoom Use 0% Tactical HUD 1 Map Filters NONE Filters NONE Steam 1 RUN: 0a783bdb-4a05-43b7-8954-a91a3029faa4